bitfinex/quotes_SOLUSD_20250718
["timestamp","ask_amount","ask_price","bid_price","bid_amount"]
[1752864840177,0.06,178.53,178.52,53.09725235]
[1752864840480,0.06,178.53,178.52,53.76725235]
[1752864840864,0.06,178.53,178.52,24.56725235]
[1752864841069,0.06,178.53,178.52,46.65468397]
[1752864841300,0.06,178.53,178.52,53.76725235]
[1752864842592,0.06,178.53,178.52,59.36886561]
[1752864848186,0.06,178.57,178.54,26.0]
[1752864848389,0.06,178.57,178.54,65.7708065]
[1752864848591,0.06,178.57,178.54,66.4408065]
[1752864849323,0.06,178.57,178.54,59.32823812]
[1752864851718,0.06,178.55,178.54,59.30823812]
[1752864854014,0.06,178.55,178.54,59.28823812]
[1752864854721,0.06,178.55,178.54,71.90468397]
[1752864854922,0.06,178.55,178.54,23.89725235]
[1752864855129,0.06,178.55,178.54,53.01725235]
[1752864855292,0.06,178.55,178.54,79.01725235]
[1752864855692,0.06,178.55,178.54,71.90468397]
[1752864855993,0.06,178.55,178.54,62.23256838]
[1752864856191,0.72,178.55,178.54,55.12]
[1752864856915,0.06,178.55,178.54,55.12]
[1752864857218,0.06,178.55,178.54,62.23256838]
[1752864860104,0.06,178.55,178.54,55.12]
[1752864860406,0.06,178.55,178.54,62.23256838]
[1752864866918,0.06,178.55,178.54,85.30823812]
[1752864870443,0.06,178.55,178.54,59.30823812]
[1752864873930,0.06,178.57,178.56,16.78468397]
[1752864874117,0.06,178.57,178.56,60.66985657]
[1752864874336,0.06,178.57,178.56,61.35985657]
[1752864874708,0.06,178.57,178.56,66.96021499]
[1752864879518,0.06,178.57,178.56,59.84764661]
[1752864880124,0.06,178.57,178.56,66.96021499]
[1752864881145,0.06,178.57,178.56,22.38504239]
[1752864881445,0.06,178.57,178.56,58.57761077]
[1752864883954,0.06,178.57,178.56,71.38399417]
[1752864886932,0.06,178.57,178.56,70.82395833]
[1752864887451,0.06,178.57,178.56,58.57761077]
[1752864889944,0.06,178.57,178.56,59.26761077]
[1752864891051,0.75,178.57,178.56,58.57761077]
[1752864891949,0.06,178.57,178.56,5.60035842]
[1752864892147,1.5123,178.56,178.53,0.03]
[1752864892353,7.11256838,178.54,178.51,29.11]
[1752864892523,1.5123,178.56,178.51,29.11]
[1752864892856,12.71418164,178.52,178.51,29.11]
[1752864893031,13.40418164,178.52,178.51,29.11]
[1752864896555,7.80256838,178.52,178.51,29.11]
[1752864897048,13.40418164,178.52,178.51,29.11]
[1752864897227,0.69,178.54,178.51,36.22256838]
[1752864897542,0.69,178.54,178.53,7.11256838]
[1752864897750,0.69,178.54,178.53,36.19256838]
[1752864901731,12.789603,178.57,178.53,36.19256838]
[1752864902058,0.69,178.56,178.53,36.19256838]
[1752864902531,0.69,178.55,178.53,36.19256838]
[1752864902733,7.1895,178.57,178.54,7.11256838]
[1752864903050,0.06,178.57,178.56,7.11256838]
[1752864904161,0.06,178.57,178.56,30.18761077]
[1752864906265,0.06,178.57,178.56,29.49761077]
[1752864909660,0.06,178.57,178.56,23.89725235]
[1752864910161,0.06,178.57,178.56,29.49761077]
[1752864911469,0.06,178.57,178.56,23.89725235]
[1752864911670,0.75,178.57,178.56,23.89725235]
[1752864913074,0.75,178.57,178.55,29.11]
[1752864913259,7.86256838,178.57,178.55,0.03]
[1752864913463,7.86256838,178.57,178.56,29.08]
[1752864913857,13.46263745,178.57,178.56,29.08]
[1752864916659,6.35006907,178.57,178.56,29.08]
[1752864916859,13.46263745,178.57,178.55,0.03]
[1752864917178,14.05096838,178.56,178.55,0.03]
[1752864917365,14.05096838,178.56,178.51,0.03]
[1752864917368,21.16353676,178.56,178.51,0.03]
[1752864917557,7.11256838,178.52,178.51,0.03]
[1752864917772,8.71116838,178.52,178.51,0.03]
[1752864917968,9.42116838,178.52,178.51,0.03]
[1752864918171,9.42116838,178.52,178.47,0.03]
[1752864918482,12.71543704,178.48,178.47,0.03]
[1752864918866,13.42543704,178.48,178.47,0.03]
[1752864919985,6.31286866,178.48,178.47,0.03]
[1752864920159,13.42543704,178.48,178.47,0.03]
[1752864921059,16.26333634,178.48,178.47,0.03]
[1752864921874,6.31286866,178.48,178.47,0.03]
[1752864922072,0.71,178.48,178.47,0.03]
[1752864923171,13.42543704,178.48,178.47,0.03]
[1752864926665,103.12543704,178.48,178.47,0.03]
[1752864927693,20.53800542,178.48,178.45,0.03]
[1752864927869,12.71606496,178.46,178.45,0.03]
[1752864928269,15.07616496,178.46,178.45,0.03]
[1752864930091,21.63786496,178.46,178.45,0.03]
[1752864930662,21.63786496,178.46,178.43,0.03]
[1752864930867,7.11256838,178.44,178.43,0.03]
[1752864931381,7.82256838,178.44,178.42,0.03]
[1752864931574,7.82256838,178.43,178.42,0.03]
[1752864932096,13.42700709,178.43,178.42,0.03]
[1752864932296,6.31443871,178.43,178.42,0.03]
[1752864932600,0.71,178.43,178.42,0.03]
[1752864932773,6.31443871,178.43,178.42,0.03]
[1752864933392,13.42700709,178.43,178.42,0.03]
[1752864938266,13.42700709,178.43,178.41,0.03]
[1752864938589,7.82256838,178.42,178.41,0.03]
[1752864940393,13.42732121,178.42,178.41,0.03]
[1752864940794,6.31475283,178.42,178.41,0.03]
[1752864941301,5.60475283,178.42,178.41,0.03]
[1752864942201,6.31475283,178.42,178.41,0.03]
[1752864942698,13.42732121,178.42,178.41,0.03]
[1752864943499,27.43920328,178.42,178.38,0.03]
[1752864943675,7.11256838,178.39,178.38,0.03]
[1752864944080,7.82256838,178.39,178.38,0.03]
[1752864944797,27.18233214,178.39,178.38,1e-08]
[1752864944972,28.73563214,178.39,178.37,1e-08]
[1752864945176,133.73513676,178.38,178.37,1e-08]
[1752864945373,150.51982073,178.38,178.37,1e-08]
[1752864945599,7.11256838,178.35,178.34,0.03]
[1752864945980,7.83256838,178.35,178.34,0.03]
[1752864946180,7.83256838,178.35,178.33,0.1]
[1752864946181,36.93256838,178.35,178.33,0.1]
[1752864946381,7.83256838,178.34,178.33,1e-08]
[1752864946802,13.43983539,178.34,178.33,1e-08]
[1752864947916,30.22451936,178.34,178.33,1e-08]
[1752864948201,23.11195098,178.34,178.33,1e-08]
[1752864948381,30.22451936,178.34,178.33,1e-08]
[1752864948572,30.22451936,178.34,178.32,1e-08]
[1752864948775,7.83256838,178.33,178.32,1e-08]
[1752864949002,73.06344652,178.33,178.32,1e-08]
[1752864952700,32.32758145,178.33,178.32,1e-08]
[1752864952915,43.96344652,178.33,178.32,1e-08]
[1752864955086,32.32758145,178.33,178.32,1e-08]
[1752864955282,43.96344652,178.33,178.32,1e-08]
[1752864956510,47.06344652,178.33,178.32,1e-08]
[1752864956893,17.96344652,178.33,178.32,1e-08]
[1752864960889,46.36344652,178.33,178.32,1e-08]
[1752864961114,17.24344652,178.33,178.32,1e-08]
[1752864961325,17.96344652,178.33,178.32,1e-08]
[1752864962312,159.43245872,178.38,178.32,12.31586508]
[1752864962313,95.30663825,178.36,178.32,12.31586508]
[1752864962516,96.65433466,178.38,178.35,11.63586507]
[1752864962699,6.95433466,178.38,178.37,11.63586507]
[1752864963012,6.95433466,178.38,178.37,12.31586507]
[1752864963321,12.5603443,178.38,178.34,11.63586507]
[1752864963490,12.5603443,178.38,178.32,1e-08]
[1752864963491,12.35586507,178.37,178.32,1e-08]
[1752864963692,11.63586507,178.34,178.32,1e-08]
[1752864964291,5.60758145,178.33,178.32,1e-08]
[1752864964895,17.24344652,178.33,178.32,1e-08]
[1752864966440,17.96344652,178.33,178.32,1e-08]
[1752864969605,5.60758145,178.33,178.32,1e-08]
[1752864970014,11.69586507,178.34,178.32,1e-08]
[1752864970521,5.66740307,178.34,178.32,0.68000001]
[1752864970693,5.66740307,178.34,178.32,1e-08]
[1752864972303,18.02326814,178.34,178.32,1e-08]
[1752864972500,17.30326814,178.34,178.32,1e-08]
[1752864974032,18.02326814,178.34,178.32,1e-08]
[1752864975713,6.38740307,178.34,178.32,1e-08]
[1752864975904,18.02326814,178.34,178.32,1e-08]
[1752864976209,12.32586507,178.33,178.32,1e-08]
[1752864976823,17.93344652,178.33,178.32,1e-08]
[1752864977126,107.63344652,178.33,178.32,1e-08]
[1752864977903,17.93344652,178.33,178.32,1e-08]
[1752864981131,31.26240014,178.33,178.26,0.03]
[1752864981437,11.63586507,178.29,178.26,0.03]
[1752864981608,11.63586507,178.28,178.26,0.03]
[1752864982034,89.7,178.31,178.26,0.03]
[1752864982035,101.33586507,178.27,178.26,0.03]
[1752864982416,102.02586507,178.27,178.26,0.03]
[1752864982616,107.63533385,178.27,178.26,0.03]
[1752864983309,17.93533385,178.27,178.26,0.03]
[1752864983510,5.60946878,178.27,178.26,0.03]
[1752864983840,17.24533385,178.27,178.26,0.03]
[1752864984748,5.60946878,178.27,178.26,0.03]
[1752864986637,5.60946878,178.27,178.26,12.33586507]
[1752864986843,19.63054821,178.3,178.26,11.66586507]
[1752864987141,19.63054821,178.3,178.26,0.7]
[1752864987142,31.95641328,178.3,178.26,0.7]
[1752864987511,31.95641328,178.3,178.26,0.03]
[1752864987713,11.63586507,178.29,178.26,0.03]
[1752864987940,12.32586507,178.29,178.26,0.03]
[1752864988149,12.32586507,178.28,178.26,0.03]
[1752864988322,0.69,178.28,178.26,0.03]
[1752864988521,0.69,178.27,178.26,0.03]
[1752864988737,6.29946878,178.27,178.26,0.03]
[1752864989420,107.63533385,178.27,178.26,0.03]
[1752864989740,61.0590058,178.27,178.23,0.1]
[1752864989923,11.63586507,178.24,178.23,1e-08]
[1752864990317,12.32586507,178.24,178.23,1e-08]
[1752864991049,17.93627799,178.24,178.23,1e-08]
[1752864994323,17.24627799,178.24,178.23,1e-08]
[1752864995422,5.61041292,178.24,178.23,1e-08]
[1752864995622,5.61041292,178.24,178.23,0.67000001]
[1752864995845,69.81367195,178.27,178.23,0.67000001]
[1752864995846,5.60978346,178.26,178.23,0.67000001]
[1752864996034,5.60978346,178.26,178.24,0.67]
[1752864996238,11.63586507,178.3,178.25,12.30586507]
[1752864996555,12.32586507,178.31,178.27,11.63586507]
[1752864996740,15.66713399,178.33,178.29,11.63586507]
[1752864996741,0.75,178.33,178.29,11.63586507]
[1752864996941,5.60789591,178.32,178.28,12.30586507]
[1752864997150,6.29789591,178.32,178.28,11.63586507]
[1752864997339,6.29789591,178.32,178.28,12.30586507]
[1752864998864,5.60789591,178.32,178.28,12.30586507]
[1752864999027,5.60789591,178.32,178.29,12.30586507]
[1752864999742,5.60789591,178.32,178.3,12.30586507]
[1752865000253,5.60789591,178.32,178.29,11.63586507]
[1752865000860,5.60789591,178.32,178.29,12.30586507]
[1752865001759,5.66758145,178.33,178.29,0.67]
[1752865002060,5.66758145,178.33,178.3,12.30586507]
[1752865002230,5.66758145,178.33,178.29,11.63586507]
[1752865002631,6.35758145,178.33,178.29,12.30586507]
[1752865003565,96.05758145,178.33,178.29,12.30586507]
[1752865005539,96.05758145,178.33,178.29,11.63586507]
[1752865006842,96.05758145,178.33,178.24,71.88468397]
[1752865006843,95.36758145,178.33,178.3,12.32586507]
[1752865007144,95.36758145,178.33,178.3,7.82520773]
[1752865007849,96.02758145,178.33,178.29,7.13520773]
[1752865008953,103.16278918,178.33,178.29,7.13520773]
[1752865009269,7.13520773,178.31,178.26,0.69]
[1752865009468,96.83520773,178.31,178.27,7.82520773]
[1752865009657,89.7,178.31,178.27,7.82520773]
[1752865011483,89.7,178.31,178.29,7.13520773]
[1752865011687,89.7,178.31,178.3,7.82520773]
[1752865012655,89.7,178.31,178.3,7.13520773]
[1752865013060,89.76,178.31,178.3,7.13520773]
[1752865014683,95.36827386,178.31,178.28,0.69]
[1752865014981,0.06,178.31,178.3,7.13520773]
[1752865016557,0.06,178.31,178.3,7.82520773]
[1752865016787,0.06,178.31,178.3,7.13520773]
[1752865017167,0.06,178.31,178.3,0.69]
[1752865017381,0.06,178.31,178.3,7.82520773]
[1752865018084,0.06,178.31,178.3,13.43373268]
[1752865019180,0.06,178.31,178.3,30.21841665]
[1752865019574,0.06,178.31,178.3,23.08320892]
[1752865019772,0.06,178.31,178.3,30.21841665]
[1752865020177,0.06,178.31,178.3,0.69]
[1752865020361,0.06,178.31,178.28,5.6090908]
[1752865020362,0.06,178.31,178.29,62.21520773]
[1752865020563,0.06,178.31,178.29,55.08]
[1752865020765,0.66,178.3,178.27,33.13520773]
[1752865020975,0.66,178.29,178.24,0.69]
[1752865021289,7.13520773,178.27,178.23,1e-08]
[1752865021665,5.60978346,178.26,178.23,7.13520774]
[1752865022663,6.26978346,178.26,178.23,1e-08]
[1752865022975,0.66,178.25,178.23,1e-08]
[1752865023778,5.61041292,178.24,178.23,1e-08]
[1752865024769,5.61009817,178.25,178.23,1e-08]
[1752865026183,6.27009817,178.25,178.23,1e-08]
[1752865026389,0.66,178.24,178.23,1e-08]
[1752865027090,6.27041292,178.24,178.23,1e-08]
[1752865027893,89.7,178.27,178.23,11.63857002]
[1752865027894,5.60978346,178.26,178.23,11.63857002]
[1752865028096,5.60978346,178.26,178.24,11.63857001]
[1752865028896,6.26978346,178.26,178.23,1e-08]
[1752865029380,5.60978346,178.26,178.23,11.63857002]
[1752865029774,6.26978346,178.26,178.23,11.63857002]
[1752865031888,5.60915413,178.28,178.24,11.63857001]
[1752865032093,0.66,178.27,178.24,11.63857001]
[1752865032284,0.66,178.27,178.23,11.63857002]
[1752865033019,5.60978346,178.26,178.23,1e-08]
[1752865033304,6.26978346,178.26,178.23,1e-08]
[1752865033471,6.26978346,178.26,178.23,11.63857002]
[1752865033666,17.90835347,178.26,178.23,1e-08]
[1752865034096,5.60978346,178.26,178.23,1e-08]
[1752865034304,0.66,178.25,178.23,1e-08]
[1752865034775,11.63857001,178.24,178.23,1e-08]
[1752865035181,17.90898293,178.24,178.23,1e-08]
[1752865035396,95.97041292,178.24,178.23,1e-08]
[1752865035597,107.60898293,178.24,178.23,1e-08]
[1752865035802,17.90898293,178.24,178.23,1e-08]
[1752865035984,24.32788293,178.24,178.23,1e-08]
[1752865036374,12.68931292,178.24,178.23,1e-08]
[1752865036575,24.32788293,178.24,178.23,1e-08]
[1752865040285,5.61041292,178.24,178.23,1e-08]
[1752865040803,5.61012054,178.25,178.23,11.63857002]
[1752865041683,0.06,178.26,178.24,12.35857001]
[1752865041885,0.06,178.26,178.25,11.63857001]
[1752865042109,0.06,178.26,178.25,12.35857001]
[1752865043508,0.06,178.26,178.23,0.72000001]
[1752865043803,0.06,178.26,178.25,11.63857001]
[1752865044290,0.75,178.26,178.23,1e-08]
[1752865044617,0.69,178.25,178.23,11.63857002]
[1752865044796,0.69,178.25,178.23,1e-08]
[1752865045615,5.61041292,178.24,178.23,1e-08]
[1752865046216,0.69,178.25,178.23,7.14116009]
[1752865046389,0.06,178.26,178.23,7.14116009]
[1752865046598,5.6698682,178.26,178.23,1e-08]
[1752865046799,5.6698682,178.26,178.24,7.14116008]
[1752865047022,6.3598682,178.26,178.24,7.14116008]
[1752865047318,5.6698682,178.26,178.24,7.14116008]
[1752865047626,0.06,178.26,178.25,7.14116008]
[1752865048999,0.06,178.26,178.23,0.72000001]
[1752865049211,0.06,178.26,178.25,7.14116008]
[1752865049554,0.06,178.26,178.23,1e-08]
[1752865049555,0.75,178.26,178.24,7.14116008]
[1752865050511,0.06,178.26,178.24,7.14116008]
[1752865051020,0.75,178.26,178.24,7.14116008]
[1752865051220,0.75,178.26,178.23,7.14116009]
[1752865051520,0.75,178.26,178.23,1e-08]
[1752865051720,0.75,178.26,178.23,7.14116009]
[1752865052318,5.61009817,178.25,178.23,7.14116009]
[1752865052920,0.69,178.24,178.23,1e-08]
[1752865053290,5.61009817,178.25,178.23,1e-08]
[1752865053915,5.61009817,178.25,178.23,7.14116009]
[1752865055396,5.61009817,178.25,178.23,1e-08]
[1752865055601,0.69,178.24,178.23,7.14116009]
[1752865055821,5.61009817,178.25,178.23,7.14116009]
[1752865056023,6.30009817,178.25,178.23,7.14116009]
[1752865056224,6.36009817,178.25,178.23,7.14116009]
[1752865056403,5.67009817,178.25,178.23,7.14116009]
[1752865057104,0.06,178.25,178.23,7.14116009]
[1752865057320,0.06,178.25,178.23,1e-08]
[1752865057505,0.75,178.25,178.23,7.14116009]
[1752865057913,0.06,178.25,178.23,7.14116009]
[1752865058114,0.06,178.25,178.24,7.14116008]
[1752865059200,0.75,178.25,178.23,7.14116009]
[1752865059714,0.06,178.25,178.23,7.14116009]
[1752865061842,0.06,178.25,178.24,7.14116008]
[1752865062053,0.06,178.25,178.24,7.86116008]
[1752865062605,0.06,178.25,178.24,7.14116008]
[1752865062801,0.75,178.25,178.23,1e-08]
[1752865063008,6.36014749,178.25,178.23,1e-08]
[1752865063322,0.69,178.24,178.23,1e-08]
[1752865064130,5.67014749,178.25,178.23,1e-08]
[1752865064510,0.69,178.24,178.23,1e-08]
[1752865065245,6.30041292,178.24,178.23,1e-08]
[1752865065540,13.441573,178.24,178.23,1e-08]
[1752865070322,13.441573,178.24,178.22,0.03]
[1752865070323,132.181573,178.24,178.22,1e-08]
[1752865070555,114.29584405,178.23,178.22,1e-08]
[1752865070728,16.78468397,178.22,178.19,0.03]
[1752865070937,7.14116008,178.2,178.19,0.03]
[1752865071144,12.75283235,178.2,178.19,0.03]
[1752865071343,17.61927508,178.2,178.19,0.03]
[1752865072234,13.42283235,178.2,178.19,0.03]
[1752865074835,0.67,178.18,178.13,52.34818024]
[1752865075037,7.81116008,178.17,178.13,44.53702016]
[1752865075239,0.67,178.17,178.13,44.53702016]
[1752865075432,0.67,178.16,178.13,44.53702016]
[1752865075840,5.61324726,178.15,178.13,44.53702016]
[1752865077848,96.84116008,178.14,178.13,0.03]
[1752865078564,97.51116008,178.14,178.13,0.03]
[1752865080047,103.12472244,178.14,178.13,0.03]
[1752865080636,95.31356236,178.14,178.13,0.03]
[1752865082439,95.98356236,178.14,178.13,0.03]
[1752865082857,103.12472244,178.14,178.13,0.03]
[1752865083865,13.42472244,178.14,178.13,0.03]
[1752865084765,5.61356236,178.14,178.13,0.03]
[1752865084971,5.61293219,178.16,178.13,7.84116008]
[1752865085174,5.61293219,178.16,178.14,7.14116008]
[1752865085466,5.61256578,178.18,178.15,7.81116008]
[1752865086136,5.61256578,178.18,178.14,7.14116008]
[1752865086337,90.37,178.17,178.13,7.17116008]
[1752865086537,6.28293219,178.16,178.13,0.03]
[1752865086956,5.61293219,178.16,178.13,7.17116008]
[1752865087158,89.7,178.17,178.14,7.81116008]
[1752865087480,89.7,178.17,178.16,7.14116008]
[1752865087481,95.31261716,178.17,178.16,7.14116008]
[1752865087771,89.7,178.17,178.16,7.81116008]
[1752865088343,95.31261716,178.17,178.16,7.14116008]
[1752865088542,95.31261716,178.17,178.15,7.14116008]
[1752865089058,95.31261716,178.17,178.14,36.20116008]
[1752865089561,95.98261716,178.17,178.14,36.20116008]
[1752865090070,95.31261716,178.17,178.14,36.20116008]
[1752865090272,95.31261716,178.17,178.14,36.87116008]
[1752865091344,95.98261716,178.17,178.14,29.06]
[1752865091645,7.81116008,178.16,178.14,29.06]
[1752865091840,0.67,178.15,178.13,0.03]
[1752865092045,7.81116008,178.15,178.13,0.03]
[1752865092254,0.67,178.14,178.13,0.03]
[1752865092975,5.61356236,178.14,178.13,0.03]
[1752865093641,6.28356236,178.14,178.13,0.03]
[1752865093846,13.42472244,178.14,178.13,0.03]
[1752865094245,27.45862835,178.14,178.08,29.06]
[1752865094450,7.14116008,178.11,178.08,29.06]
[1752865094759,7.14116008,178.11,178.06,7.81116008]
[1752865094760,0.67,178.1,178.06,7.81116008]
[1752865094989,6.28513841,178.09,178.05,7.24116008]
[1752865095659,0.71,178.08,178.05,7.24116008]
[1752865096048,12.75629849,178.09,178.05,0.78]
[1752865096251,12.75629849,178.09,178.06,0.68]
[1752865096485,0.71,178.08,178.05,0.1]
[1752865096687,12.75629849,178.09,178.05,0.78]
[1752865096986,12.75629849,178.09,178.06,0.68]
[1752865097158,5.61459821,178.11,178.05,7.24116008]
[1752865097358,89.7,178.13,178.1,7.14116008]
[1752865097769,89.7,178.13,178.1,7.82116008]
[1752865098279,95.31398268,178.13,178.1,7.82116008]
[1752865098656,95.31398268,178.13,178.1,7.14116008]
[1752865099368,0.71,178.12,178.09,7.14116008]
[1752865099779,0.71,178.12,178.07,29.74]
[1752865100078,0.71,178.12,178.09,7.14116008]
[1752865100866,5.61450788,178.11,178.09,7.14116008]
[1752865102576,0.71,178.1,178.07,29.06]
[1752865103360,7.14116008,178.11,178.07,29.06]
[1752865103970,26.79083444,178.12,178.07,36.20116008]
[1752865104174,26.79083444,178.12,178.08,7.14116008]
[1752865104686,19.64967436,178.12,178.08,7.14116008]
[1752865105494,5.61419267,178.12,178.08,7.14116008]
[1752865105654,7.14116008,178.11,178.07,7.14116008]
[1752865106898,12.75535275,178.12,178.07,7.14116008]
[1752865107094,5.61482313,178.1,178.07,7.14116008]
[1752865107499,89.7,178.11,178.09,7.14116008]
[1752865108302,89.7,178.11,178.06,5.64605669]
[1752865108473,5.61426789,178.12,178.09,7.14116008]
[1752865108673,5.61426789,178.12,178.09,36.20116008]
[1752865108977,5.61426789,178.12,178.09,36.88116008]
[1752865109181,5.6138775,178.13,178.09,36.88116008]
[1752865109492,6.3238775,178.13,178.09,36.88116008]
[1752865109798,5.6138775,178.13,178.09,36.88116008]
[1752865109993,7.85116008,178.12,178.09,29.06]
[1752865110189,0.71,178.11,178.09,29.06]
[1752865110701,7.14116008,178.12,178.09,29.06]
[1752865111277,5.61450788,178.11,178.09,29.06]
[1752865113105,90.41,178.1,178.06,36.23116008]
[1752865113605,5.61513841,178.09,178.06,36.23116008]
[1752865113918,5.61513841,178.09,178.06,36.91116008]
[1752865115773,5.61513841,178.09,178.06,36.23116008]
[1752865116382,5.61513841,178.09,178.07,0.68]
[1752865116604,89.7,178.1,178.08,7.82116008]
[1752865116906,89.7,178.1,178.09,7.82116008]
[1752865117207,89.7,178.1,178.09,36.88116008]
[1752865118600,89.7,178.1,178.09,29.74]
[1752865118807,89.7,178.1,178.09,36.88116008]
[1752865118977,5.61456913,178.11,178.09,36.88116008]
[1752865119176,5.61456913,178.11,178.09,29.06]
[1752865119410,0.71,178.1,178.09,29.06]
[1752865119577,0.71,178.1,178.07,7.14116008]
[1752865119578,0.71,178.1,178.07,36.18116008]
[1752865120002,5.61456913,178.11,178.07,36.18116008]
[1752865120211,6.32456913,178.11,178.07,36.18116008]
[1752865120585,5.61456913,178.11,178.07,36.86116008]
[1752865121091,5.61456913,178.11,178.08,0.68]
[1752865121784,5.61456913,178.11,178.08,7.82116008]
[1752865122105,5.61419267,178.12,178.08,7.82116008]
[1752865123197,27.50083444,178.12,178.08,0.68]
[1752865123392,7.14116008,178.09,178.06,0.03]
[1752865123717,0.71,178.11,178.06,0.03]
[1752865123718,7.14116008,178.07,178.06,0.03]
[1752865124021,7.85116008,178.07,178.06,0.03]
[1752865124198,13.46692915,178.07,178.06,0.03]
[1752865124990,13.46692915,178.07,178.06,1e-08]
[1752865125389,16.78468397,178.06,178.05,1e-08]
[1752865125709,57.87908043,178.06,178.05,1e-08]
[1752865126095,64.23238043,178.06,178.05,1e-08]
[1752865126313,69.84846489,178.06,178.05,1e-08]
[1752865130609,69.85411331,178.06,178.05,1e-08]
[1752865130932,69.85411331,178.06,177.96,0.67]
[1752865130933,115.69999999,178.04,177.96,0.67]
[1752865131226,7.14116008,177.99,177.96,0.67]
[1752865131389,118.75999999,178.03,177.96,0.67]
[1752865131590,7.14116008,177.99,177.96,0.67]
[1752865132011,0.72,178.01,177.96,0.67]
[1752865132310,7.14116008,178.0,177.96,0.67]
[1752865132513,12.75945324,177.99,177.95,7.14116008]
[1752865132818,12.75945324,177.99,177.95,7.81116008]
[1752865133502,0.72,177.98,177.93,26.0]
[1752865133804,7.14116008,177.94,177.91,16.78468397]
[1752865134005,7.14116008,177.93,177.88,14.26408368]
[1752865134192,7.14116008,177.93,177.91,0.67]
[1752865134701,5.62029826,177.93,177.91,0.67]
[1752865135584,5.62029826,177.93,177.88,7.12296726]
[1752865135784,12.76071613,177.95,177.92,0.67]
[1752865136008,12.76071613,177.95,177.9,36.85116008]
[1752865136208,7.14116008,177.94,177.9,29.71]
[1752865136390,7.14116008,177.93,177.9,29.04]
[1752865136591,12.76197959,177.91,177.87,26.0]
[1752865136788,7.14116008,177.9,177.86,7.14116008]
[1752865137210,7.14116008,177.9,177.86,7.81116008]
[1752865137810,7.14116008,177.9,177.84,30.6228]
[1752865137811,7.14116008,177.88,177.84,30.6228]
[1752865138016,7.14116008,177.88,177.84,29.76]
[1752865138196,7.14116008,177.88,177.84,36.90116008]
[1752865138395,7.14116008,177.88,177.85,0.67]
[1752865139023,5.62050359,177.92,177.86,7.81116008]
[1752865139195,33.86116008,177.95,177.87,0.67]
[1752865139518,33.86116008,177.95,177.9,7.14116008]
[1752865139922,7.14116008,177.94,177.9,7.14116008]
[1752865140226,13.48103194,177.94,177.9,7.14116008]
[1752865140398,13.48103194,177.94,177.89,7.81116008]
[1752865140715,7.14116008,177.91,177.85,0.67]
[1752865141017,7.14116008,177.9,177.85,7.81116008]
[1752865141224,5.62145145,177.89,177.85,7.81116008]
[1752865141714,12.76261153,177.89,177.85,0.67]
[1752865141914,7.14116008,177.88,177.84,29.09]
[1752865142095,12.76261153,177.89,177.85,0.67]
[1752865142416,12.76261153,177.89,177.84,27.76]
[1752865142623,5.62145145,177.89,177.85,7.14116008]
[1752865142806,12.76261153,177.89,177.85,7.14116008]
[1752865143118,13.48261153,177.89,177.85,7.14116008]
[1752865143518,6.34145145,177.89,177.85,7.14116008]
[1752865143718,13.48261153,177.89,177.85,7.14116008]
[1752865144226,12.76261153,177.89,177.85,7.37116008]
[1752865144397,5.62145145,177.89,177.86,7.37116008]
[1752865144810,89.69999999,177.92,177.88,7.14116008]
[1752865145001,89.69999999,177.92,177.91,7.14116008]
[1752865145301,95.31965508,177.95,177.91,7.14116008]
[1752865145499,89.69999999,177.95,177.93,7.14116008]
[1752865145923,5.61930472,177.96,177.93,7.14116008]
[1752865146105,5.61892453,177.97,177.93,7.14116008]
[1752865146308,5.61892453,177.97,177.94,7.14116008]
[1752865146696,6.33892453,177.97,177.94,7.14116008]
[1752865148132,5.61892453,177.97,177.95,7.14116008]
[1752865149726,5.61860883,177.98,177.95,7.14116008]
[1752865150029,6.33860883,177.98,177.95,7.14116008]
[1752865150255,5.61860883,177.98,177.96,7.14116008]
[1752865150831,5.61807594,178.0,177.97,7.14116008]